[Event "Titled Tuesday Blitz November 14 Late 2023"]
[White "Flameboard08"]
[Black "Gholami Orimi, Mahdi"]
[BlackFideId "12558486"]
[WhiteElo "2633"]
[BlackElo "2947"]
[Result "0-1"]
[Round "5"]
[TimeControl "180+1"]
[Date "2023.11.14"]
[WhiteClock "0:00:00"]
[BlackClock "0:00:19"]
[Board "18"]

1. f4 {[%clk 0:02:50]}  e5 {[%clk 0:02:33]} 2. fxe5 {[%clk 0:02:50]}  d6 {[%clk 0:02:33]} 3. exd6 {[%clk 0:02:51]}  Bxd6 {[%clk 0:02:34]} 4. Nf3 {[%clk 0:02:51]}  g5 {[%clk 0:02:33]} 5. g3 {[%clk 0:02:52]}  g4 {[%clk 0:02:33]} 6. Nh4 {[%clk 0:02:51]}  Ne7 {[%clk 0:02:33]} 7. e4 {[%clk 0:02:43]}  Ng6 {[%clk 0:02:33]} 8. Nf5 {[%clk 0:02:43]}  Bxf5 {[%clk 0:02:23]} 9. exf5 {[%clk 0:02:44]}  Ne5 {[%clk 0:02:21]} 10. Be2 {[%clk 0:02:40]}  h5 {[%clk 0:02:05]} 11. d4 {[%clk 0:02:36]}  Nec6 {[%clk 0:01:58]} 12. c3 {[%clk 0:02:04]}  h4 {[%clk 0:01:56]} 13. Kf2 {[%clk 0:01:54]}  Nd7 {[%clk 0:01:40]} 14. Bxg4 {[%clk 0:01:50]}  Nf6 {[%clk 0:01:39]} 15. Bf3 {[%clk 0:01:45]}  Kd7 {[%clk 0:01:27]} 16. g4 {[%clk 0:01:32]}  h3 {[%clk 0:01:27]} 17. c4 {[%clk 0:01:26]}  Nh7 {[%clk 0:01:21]} 18. c5 {[%clk 0:01:23]}  Qh4+ {[%clk 0:01:19]} 19. Kf1 {[%clk 0:01:21]}  Be7 {[%clk 0:01:16]} 20. Be3 {[%clk 0:01:04]}  Ng5 {[%clk 0:01:09]} 21. Bxc6+ {[%clk 0:00:59]}  bxc6 {[%clk 0:01:06]} 22. d5 {[%clk 0:00:56]}  Rad8 {[%clk 0:00:47]} 23. Nc3 {[%clk 0:00:46]}  Ke8 {[%clk 0:00:46]} 24. Bf2 {[%clk 0:00:34]}  Qh6 {[%clk 0:00:44]} 25. Qa4 {[%clk 0:00:33]}  Kf8 {[%clk 0:00:44]} 26. Qxc6 {[%clk 0:00:26]}  Qxc6 {[%clk 0:00:43]} 27. dxc6 {[%clk 0:00:27]}  Rd2 {[%clk 0:00:43]} 28. Be3 {[%clk 0:00:18]}  Rxb2 {[%clk 0:00:42]} 29. Rb1 {[%clk 0:00:17]}  Rxb1+ {[%clk 0:00:39]} 30. Nxb1 {[%clk 0:00:18]}  Rh4 {[%clk 0:00:39]} 31. Rg1 {[%clk 0:00:11]}  Nf3 {[%clk 0:00:39]} 32. Rg3 {[%clk 0:00:08]}  Nxh2+ {[%clk 0:00:39]} 33. Kg1 {[%clk 0:00:07]}  Nxg4 {[%clk 0:00:40]} 34. Kh1 {[%clk 0:00:07]}  Bf6 {[%clk 0:00:37]} 35. Nd2 {[%clk 0:00:04]}  Be5 {[%clk 0:00:35]} 36. Rf3 {[%clk 0:00:04]}  h2 {[%clk 0:00:31]} 37. Bf4 {[%clk 0:00:03]}  Bd4 {[%clk 0:00:23]} 38. Bg3 {[%clk 0:00:02]}  Rh3 {[%clk 0:00:20]} 39. Nf1 {[%clk 0:00:03]}  Nf2+ {[%clk 0:00:17]} 40. Rxf2 {[%clk 0:00:01]}  Bxf2 {[%clk 0:00:17]} 41. Bxf2 {[%clk 0:00:02]}  Rf3 {[%clk 0:00:18]} 42. Nxh2 {[%clk 0:00:00]}  Rxf2 {[%clk 0:00:19]} 0-1


[Site "https://www.chess.com"]

[Event "Titled Tuesday Blitz November 14 Late 2023"]
[White "Mitrabha, Guha"]
[Black "Adewumi, Tanitoluwa"]
[WhiteFideId "5057000"]
[BlackFideId "30966396"]
[WhiteElo "2937"]
[BlackElo "2628"]
[Result "1-0"]
[Round "5"]
[TimeControl "180+1"]
[Date "2023.11.14"]
[WhiteClock "0:02:02"]
[BlackClock "0:00:31"]
[Board "19"]

1. Nf3 {[%clk 0:02:54]}  Nf6 {[%clk 0:02:56]} 2. d4 {[%clk 0:02:54]}  e6 {[%clk 0:02:55]} 3. Bf4 {[%clk 0:02:55]}  d5 {[%clk 0:02:54]} 4. e3 {[%clk 0:02:55]}  Bd6 {[%clk 0:02:55]} 5. Nbd2 {[%clk 0:02:56]}  O-O {[%clk 0:02:54]} 6. Bd3 {[%clk 0:02:56]}  c5 {[%clk 0:02:53]} 7. c3 {[%clk 0:02:56]}  Qc7 {[%clk 0:02:52]} 8. Bxd6 {[%clk 0:02:56]}  Qxd6 {[%clk 0:02:53]} 9. Ne5 {[%clk 0:02:57]}  Nc6 {[%clk 0:02:50]} 10. f4 {[%clk 0:02:58]}  Nd7 {[%clk 0:02:46]} 11. O-O {[%clk 0:02:56]}  f6 {[%clk 0:02:42]} 12. Qh5 {[%clk 0:02:55]}  f5 {[%clk 0:02:22]} 13. g4 {[%clk 0:02:52]}  Ndxe5 {[%clk 0:02:22]} 14. fxe5 {[%clk 0:02:52]}  Qe7 {[%clk 0:02:21]} 15. gxf5 {[%clk 0:02:50]}  exf5 {[%clk 0:02:22]} 16. Nf3 {[%clk 0:02:43]}  g6 {[%clk 0:02:17]} 17. Qg5 {[%clk 0:02:42]}  Qxg5+ {[%clk 0:02:08]} 18. Nxg5 {[%clk 0:02:43]}  h6 {[%clk 0:02:08]} 19. Nf3 {[%clk 0:02:42]}  Be6 {[%clk 0:02:06]} 20. h4 {[%clk 0:02:42]}  b6 {[%clk 0:01:58]} 21. Kf2 {[%clk 0:02:42]}  Na5 {[%clk 0:01:49]} 22. Rg1 {[%clk 0:02:37]}  Kh7 {[%clk 0:01:45]} 23. Rg2 {[%clk 0:02:37]}  Nc4 {[%clk 0:01:39]} 24. b3 {[%clk 0:02:35]}  Nb2 {[%clk 0:01:30]} 25. Bc2 {[%clk 0:02:27]}  c4 {[%clk 0:01:24]} 26. Ke2 {[%clk 0:02:19]}  Rac8 {[%clk 0:01:20]} 27. Kd2 {[%clk 0:02:18]}  Nd3 {[%clk 0:01:12]} 28. Bxd3 {[%clk 0:02:16]}  cxd3 {[%clk 0:01:13]} 29. Rag1 {[%clk 0:02:16]}  f4 {[%clk 0:01:00]} 30. Rxg6 {[%clk 0:02:08]}  fxe3+ {[%clk 0:00:59]} 31. Kxe3 {[%clk 0:02:08]}  Bf5 {[%clk 0:01:00]} 32. Rf6 {[%clk 0:02:03]}  Rxf6 {[%clk 0:00:40]} 33. exf6 {[%clk 0:02:04]}  Rxc3 {[%clk 0:00:38]} 34. Rg7+ {[%clk 0:02:01]}  Kh8 {[%clk 0:00:31]} 35. Ne5 {[%clk 0:02:02]} 1-0


[Site "https://www.chess.com"]

[Event "Titled Tuesday Blitz November 14 Late 2023"]
[White "Bortnyk, Mykola"]
[Black "Wadsworth, Matthew J"]
[WhiteFideId "14120836"]
[BlackFideId "415804"]
[WhiteElo "2936"]
[BlackElo "2628"]
[Result "1-0"]
[Round "5"]
[TimeControl "180+1"]
[Date "2023.11.14"]
[WhiteClock "0:01:07"]
[BlackClock "0:00:05"]
[Board "20"]

1. e4 {[%clk 0:02:57]}  e6 {[%clk 0:02:59]} 2. d4 {[%clk 0:02:46]}  d5 {[%clk 0:02:58]} 3. e5 {[%clk 0:02:47]}  c5 {[%clk 0:02:58]} 4. Nf3 {[%clk 0:02:48]}  cxd4 {[%clk 0:02:57]} 5. Bd3 {[%clk 0:02:48]}  Nc6 {[%clk 0:02:58]} 6. O-O {[%clk 0:02:49]}  Nge7 {[%clk 0:02:57]} 7. Bf4 {[%clk 0:02:50]}  Ng6 {[%clk 0:02:57]} 8. Bg3 {[%clk 0:02:50]}  Be7 {[%clk 0:02:53]} 9. Nbd2 {[%clk 0:02:42]}  f6 {[%clk 0:02:43]} 10. Bxg6+ {[%clk 0:02:34]}  hxg6 {[%clk 0:02:42]} 11. Nb3 {[%clk 0:02:33]}  fxe5 {[%clk 0:02:38]} 12. Nxe5 {[%clk 0:02:34]}  Nxe5 {[%clk 0:02:37]} 13. Bxe5 {[%clk 0:02:35]}  Bd6 {[%clk 0:02:34]} 14. Qxd4 {[%clk 0:02:27]}  Qc7 {[%clk 0:02:02]} 15. f4 {[%clk 0:01:53]}  Bxe5 {[%clk 0:01:40]} 16. fxe5 {[%clk 0:01:52]}  Bd7 {[%clk 0:01:40]} 17. Rf3 {[%clk 0:01:51]}  O-O-O {[%clk 0:01:38]} 18. Qxa7 {[%clk 0:01:49]}  Bc6 {[%clk 0:01:31]} 19. Qa8+ {[%clk 0:01:42]}  Qb8 {[%clk 0:01:30]} 20. Qxb8+ {[%clk 0:01:43]}  Kxb8 {[%clk 0:01:31]} 21. Nd4 {[%clk 0:01:44]}  Rh5 {[%clk 0:01:20]} 22. Re1 {[%clk 0:01:33]}  Rdh8 {[%clk 0:01:19]} 23. h3 {[%clk 0:01:32]}  g5 {[%clk 0:01:19]} 24. Kf2 {[%clk 0:01:30]}  R8h6 {[%clk 0:00:59]} 25. c3 {[%clk 0:01:24]}  Rh4 {[%clk 0:00:50]} 26. Rf8+ {[%clk 0:01:21]}  Ka7 {[%clk 0:00:44]} 27. Kg3 {[%clk 0:01:22]}  Kb6 {[%clk 0:00:36]} 28. Rf7 {[%clk 0:01:21]}  Rg6 {[%clk 0:00:32]} 29. Re7 {[%clk 0:01:14]}  Rhh6 {[%clk 0:00:29]} 30. Rf1 {[%clk 0:01:11]}  Kc5 {[%clk 0:00:17]} 31. Rff7 {[%clk 0:01:09]}  Kc4 {[%clk 0:00:16]} 32. Rxg7 {[%clk 0:01:09]}  Rxg7 {[%clk 0:00:16]} 33. Rxg7 {[%clk 0:01:10]}  Kd3 {[%clk 0:00:13]} 34. Rxg5 {[%clk 0:01:09]}  Kd2 {[%clk 0:00:12]} 35. h4 {[%clk 0:01:01]}  Kc1 {[%clk 0:00:12]} 36. b4 {[%clk 0:01:02]}  Kd2 {[%clk 0:00:12]} 37. b5 {[%clk 0:01:02]}  Be8 {[%clk 0:00:11]} 38. Rg8 {[%clk 0:01:03]}  Bh5 {[%clk 0:00:08]} 39. Kf4 {[%clk 0:01:02]}  Kxc3 {[%clk 0:00:08]} 40. Kg5 {[%clk 0:01:02]}  Rh7 {[%clk 0:00:07]} 41. Nxe6 {[%clk 0:01:02]}  Bf7 {[%clk 0:00:07]} 42. Rc8+ {[%clk 0:01:03]}  Kb4 {[%clk 0:00:06]} 43. Nf8 {[%clk 0:01:03]}  Rh5+ {[%clk 0:00:05]} 44. Kf6 {[%clk 0:01:04]}  Bg8 {[%clk 0:00:05]} 45. g3 {[%clk 0:01:03]}  d4 {[%clk 0:00:05]} 46. Rd8 {[%clk 0:01:04]}  Kc3 {[%clk 0:00:04]} 47. a4 {[%clk 0:01:04]}  d3 {[%clk 0:00:04]} 48. a5 {[%clk 0:01:04]}  Bc4 {[%clk 0:00:05]} 49. a6 {[%clk 0:01:04]}  bxa6 {[%clk 0:00:05]} 50. b6 {[%clk 0:01:05]}  Rh6+ {[%clk 0:00:05]} 51. Ng6 {[%clk 0:01:05]}  d2 {[%clk 0:00:05]} 52. b7 {[%clk 0:01:05]}  Rxg6+ {[%clk 0:00:05]} 53. Kxg6 {[%clk 0:01:05]}  Bd3+ {[%clk 0:00:05]} 54. Rxd3+ {[%clk 0:01:06]}  Kxd3 {[%clk 0:00:06]} 55. b8=Q {[%clk 0:01:06]}  d1=Q {[%clk 0:00:05]} 56. Qd6+ {[%clk 0:01:07]} 1-0


[Site "https://www.chess.com"]

[Event "Titled Tuesday Blitz November 14 Late 2023"]
[White "Zhigalko, Sergei"]
[Black "Roberson, Peter T"]
[WhiteFideId "13502956"]
[BlackFideId "412384"]
[WhiteElo "2896"]
[BlackElo "2614"]
[Result "1-0"]
[Round "5"]
[TimeControl "180+1"]
[Date "2023.11.14"]
[WhiteClock "0:01:30"]
[BlackClock "0:01:25"]
[Board "21"]

1. e4 {[%clk 0:03:00]}  c5 {[%clk 0:02:58]} 2. Nf3 {[%clk 0:03:00]}  d6 {[%clk 0:02:59]} 3. d4 {[%clk 0:03:00]}  cxd4 {[%clk 0:03:00]} 4. Qxd4 {[%clk 0:03:00]}  Nf6 {[%clk 0:02:57]} 5. Nc3 {[%clk 0:03:00]}  Nc6 {[%clk 0:02:57]} 6. Bb5 {[%clk 0:02:59]}  Bd7 {[%clk 0:02:58]} 7. Bxc6 {[%clk 0:02:59]}  Bxc6 {[%clk 0:02:59]} 8. Bg5 {[%clk 0:02:59]}  e6 {[%clk 0:03:00]} 9. O-O-O {[%clk 0:02:59]}  Be7 {[%clk 0:03:00]} 10. Rhe1 {[%clk 0:03:00]}  O-O {[%clk 0:03:00]} 11. Kb1 {[%clk 0:03:00]}  h6 {[%clk 0:02:54]} 12. Bh4 {[%clk 0:03:00]}  b5 {[%clk 0:02:55]} 13. Bxf6 {[%clk 0:02:59]}  Bxf6 {[%clk 0:02:53]} 14. Qxd6 {[%clk 0:02:59]}  Qxd6 {[%clk 0:02:33]} 15. Rxd6 {[%clk 0:02:58]}  Bxc3 {[%clk 0:02:34]} 16. bxc3 {[%clk 0:02:56]}  Rac8 {[%clk 0:02:35]} 17. Ne5 {[%clk 0:02:36]}  Ba8 {[%clk 0:02:33]} 18. Kb2 {[%clk 0:02:28]}  Rc7 {[%clk 0:02:32]} 19. f3 {[%clk 0:02:10]}  Rfc8 {[%clk 0:02:28]} 20. Red1 {[%clk 0:02:09]}  f6 {[%clk 0:02:17]} 21. Rd8+ {[%clk 0:02:04]}  Kh7 {[%clk 0:02:13]} 22. Rxc8 {[%clk 0:01:53]}  Rxc8 {[%clk 0:02:14]} 23. Nd3 {[%clk 0:01:35]}  Kg6 {[%clk 0:02:06]} 24. Nf4+ {[%clk 0:01:34]}  Kh7 {[%clk 0:01:27]} 25. Nxe6 {[%clk 0:01:32]}  h5 {[%clk 0:01:25]} 26. Rd7 {[%clk 0:01:30]} 1-0


[Site "https://www.chess.com"]

[Event "Titled Tuesday Blitz November 14 Late 2023"]
[White "Szpar, Milosz"]
[Black "Atanasov, Anthony"]
[WhiteFideId "1184989"]
[BlackFideId "2623897"]
[WhiteElo "2860"]
[BlackElo "2600"]
[Result "1-0"]
[Round "5"]
[TimeControl "180+1"]
[Date "2023.11.14"]
[WhiteClock "0:00:06"]
[BlackClock "0:00:03"]
[Board "24"]

1. Nf3 {[%clk 0:03:00]}  d5 {[%clk 0:02:59]} 2. e3 {[%clk 0:03:00]}  Bf5 {[%clk 0:02:59]} 3. c4 {[%clk 0:03:00]}  e6 {[%clk 0:03:00]} 4. cxd5 {[%clk 0:02:55]}  exd5 {[%clk 0:02:59]} 5. Qb3 {[%clk 0:02:56]}  Nc6 {[%clk 0:02:59]} 6. Qxb7 {[%clk 0:02:42]}  Nge7 {[%clk 0:02:22]} 7. Qb3 {[%clk 0:02:13]}  Rb8 {[%clk 0:02:20]} 8. Qa4 {[%clk 0:02:09]}  Rb4 {[%clk 0:02:16]} 9. Qd1 {[%clk 0:02:08]}  Rg4 {[%clk 0:02:08]} 10. d3 {[%clk 0:02:01]}  Ng6 {[%clk 0:02:06]} 11. h3 {[%clk 0:01:58]}  Rb4 {[%clk 0:01:58]} 12. a3 {[%clk 0:01:58]}  Rb6 {[%clk 0:01:53]} 13. Be2 {[%clk 0:01:55]}  Bd6 {[%clk 0:01:52]} 14. Nc3 {[%clk 0:01:52]}  Be6 {[%clk 0:01:45]} 15. d4 {[%clk 0:01:47]}  O-O {[%clk 0:01:37]} 16. b4 {[%clk 0:01:37]}  a5 {[%clk 0:01:34]} 17. b5 {[%clk 0:01:36]}  Nce7 {[%clk 0:01:33]} 18. Bd2 {[%clk 0:01:31]}  Nf5 {[%clk 0:01:31]} 19. Bd3 {[%clk 0:01:05]}  Ngh4 {[%clk 0:01:22]} 20. Nxh4 {[%clk 0:01:05]}  Nxh4 {[%clk 0:01:20]} 21. g3 {[%clk 0:01:05]}  Ng6 {[%clk 0:01:09]} 22. h4 {[%clk 0:01:03]}  Qf6 {[%clk 0:01:04]} 23. Qh5 {[%clk 0:00:59]}  h6 {[%clk 0:00:54]} 24. Nxd5 {[%clk 0:00:56]}  Bxd5 {[%clk 0:00:48]} 25. Qxd5 {[%clk 0:00:57]}  Re8 {[%clk 0:00:41]} 26. h5 {[%clk 0:00:40]}  Nf8 {[%clk 0:00:32]} 27. Rh4 {[%clk 0:00:28]}  Ne6 {[%clk 0:00:29]} 28. Qf5 {[%clk 0:00:20]}  Qd8 {[%clk 0:00:08]} 29. Qh7+ {[%clk 0:00:19]}  Kf8 {[%clk 0:00:09]} 30. Rg4 {[%clk 0:00:18]}  Qf6 {[%clk 0:00:06]} 31. Kf1 {[%clk 0:00:12]}  Ng5 {[%clk 0:00:04]} 32. Qf5 {[%clk 0:00:09]}  Qxf5 {[%clk 0:00:05]} 33. Bxf5 {[%clk 0:00:10]}  Rxb5 {[%clk 0:00:04]} 34. Bd7 {[%clk 0:00:10]}  Rb2 {[%clk 0:00:05]} 35. Bxe8 {[%clk 0:00:09]}  Rxd2 {[%clk 0:00:04]} 36. Bb5 {[%clk 0:00:08]}  f5 {[%clk 0:00:04]} 37. Rh4 {[%clk 0:00:07]}  Ne4 {[%clk 0:00:04]} 38. Be2 {[%clk 0:00:06]}  Nc3 {[%clk 0:00:02]} 39. Bf3 {[%clk 0:00:07]}  Be7 {[%clk 0:00:02]} 40. Rf4 {[%clk 0:00:06]}  Ke8 {[%clk 0:00:01]} 41. Rxf5 {[%clk 0:00:07]}  a4 {[%clk 0:00:02]} 42. Rc1 {[%clk 0:00:06]}  Na2 {[%clk 0:00:01]} 43. Rxc7 {[%clk 0:00:06]}  Bxa3 {[%clk 0:00:01]} 44. Ra7 {[%clk 0:00:05]}  Nc3 {[%clk 0:00:01]} 45. Re5+ {[%clk 0:00:04]}  Kd8 {[%clk 0:00:01]} 46. Bg4 {[%clk 0:00:04]}  Rd1+ {[%clk 0:00:01]} 47. Kg2 {[%clk 0:00:04]}  Rd2 {[%clk 0:00:01]} 48. Rf5 {[%clk 0:00:05]}  Ke8 {[%clk 0:00:01]} 49. Re5+ {[%clk 0:00:05]}  Kf8 {[%clk 0:00:02]} 50. Bf3 {[%clk 0:00:04]}  Kg8 {[%clk 0:00:02]} 51. Rf5 {[%clk 0:00:04]}  Kh7 {[%clk 0:00:01]} 52. Rff7 {[%clk 0:00:05]}  Kh8 {[%clk 0:00:01]} 53. Rxg7 {[%clk 0:00:05]}  Nd1 {[%clk 0:00:02]} 54. Rh7+ {[%clk 0:00:05]}  Kg8 {[%clk 0:00:02]} 55. Bd5+ {[%clk 0:00:05]}  Kf8 {[%clk 0:00:03]} 56. Rh8# {[%clk 0:00:06]} 1-0


[Site "https://www.chess.com"]

[Event "Titled Tuesday Blitz November 14 Late 2023"]
[White "Zakhartsov, Vladimir"]
[Black "Taboas Rodriguez, Daniel"]
[WhiteFideId "4145097"]
[BlackFideId "2208466"]
[WhiteElo "2849"]
[BlackElo "2594"]
[Result "1-0"]
[Round "5"]
[TimeControl "180+1"]
[Date "2023.11.14"]
[WhiteClock "0:00:44"]
[BlackClock "0:00:00"]
[Board "25"]

1. d4 {[%clk 0:03:00]}  Nf6 {[%clk 0:02:52]} 2. c4 {[%clk 0:03:00]}  g6 {[%clk 0:02:51]} 3. Nc3 {[%clk 0:02:59]}  Bg7 {[%clk 0:02:52]} 4. Bg5 {[%clk 0:02:58]}  O-O {[%clk 0:02:50]} 5. Qd2 {[%clk 0:02:57]}  d5 {[%clk 0:02:48]} 6. Bxf6 {[%clk 0:02:54]}  Bxf6 {[%clk 0:02:48]} 7. cxd5 {[%clk 0:02:53]}  c6 {[%clk 0:02:46]} 8. dxc6 {[%clk 0:02:51]}  Nxc6 {[%clk 0:02:47]} 9. e3 {[%clk 0:02:51]}  e5 {[%clk 0:02:46]} 10. d5 {[%clk 0:02:50]}  Ne7 {[%clk 0:02:38]} 11. Nf3 {[%clk 0:02:47]}  Bg7 {[%clk 0:02:35]} 12. Bc4 {[%clk 0:02:47]}  a6 {[%clk 0:02:31]} 13. a4 {[%clk 0:02:46]}  Bg4 {[%clk 0:02:20]} 14. O-O {[%clk 0:02:39]}  Nf5 {[%clk 0:02:10]} 15. Ne4 {[%clk 0:02:34]}  Rc8 {[%clk 0:01:59]} 16. Be2 {[%clk 0:02:32]}  Nd6 {[%clk 0:01:52]} 17. Nxd6 {[%clk 0:02:17]}  Qxd6 {[%clk 0:01:53]} 18. e4 {[%clk 0:02:17]}  Rc7 {[%clk 0:01:49]} 19. Rfc1 {[%clk 0:02:14]}  Rfc8 {[%clk 0:01:49]} 20. Rxc7 {[%clk 0:02:13]}  Qxc7 {[%clk 0:01:50]} 21. Ne1 {[%clk 0:02:07]}  Bd7 {[%clk 0:01:36]} 22. h3 {[%clk 0:01:52]}  Bf8 {[%clk 0:01:30]} 23. Nd3 {[%clk 0:01:48]}  Bd6 {[%clk 0:01:18]} 24. Rc1 {[%clk 0:01:42]}  Qd8 {[%clk 0:01:18]} 25. b3 {[%clk 0:01:36]}  Kg7 {[%clk 0:01:14]} 26. Bg4 {[%clk 0:01:34]}  Rxc1+ {[%clk 0:01:08]} 27. Qxc1 {[%clk 0:01:34]}  Bxg4 {[%clk 0:01:02]} 28. hxg4 {[%clk 0:01:29]}  Qh4 {[%clk 0:00:43]} 29. Qc8 {[%clk 0:01:28]}  Qe7 {[%clk 0:00:36]} 30. g3 {[%clk 0:01:24]}  h6 {[%clk 0:00:27]} 31. Kg2 {[%clk 0:01:23]}  Kh7 {[%clk 0:00:25]} 32. a5 {[%clk 0:01:21]}  Kg7 {[%clk 0:00:25]} 33. Nb2 {[%clk 0:01:21]}  Bc5 {[%clk 0:00:12]} 34. Nc4 {[%clk 0:01:17]}  Bd4 {[%clk 0:00:13]} 35. Nd2 {[%clk 0:01:04]}  Qb4 {[%clk 0:00:09]} 36. Nf3 {[%clk 0:01:01]}  Bc5 {[%clk 0:00:09]} 37. g5 {[%clk 0:00:50]}  Bf8 {[%clk 0:00:02]} 38. gxh6+ {[%clk 0:00:46]}  Kxh6 {[%clk 0:00:00]} 39. Qe8 {[%clk 0:00:44]} 1-0


[Site "https://www.chess.com"]

[Event "Titled Tuesday Blitz November 14 Late 2023"]
[White "Dourerassou, Jonathan"]
[Black "Fernandez Reyes, Lisandro"]
[WhiteFideId "628050"]
[BlackFideId "3504190"]
[WhiteElo "2797"]
[BlackElo "2571"]
[Result "0-1"]
[Round "5"]
[TimeControl "180+1"]
[Date "2023.11.14"]
[WhiteClock "0:00:20"]
[BlackClock "0:01:16"]
[Board "30"]

1. d4 {[%clk 0:03:00]}  Nf6 {[%clk 0:02:59]} 2. Bg5 {[%clk 0:03:01]}  Ne4 {[%clk 0:02:56]} 3. Bf4 {[%clk 0:03:00]}  c5 {[%clk 0:02:56]} 4. Nd2 {[%clk 0:03:00]}  Nxd2 {[%clk 0:02:51]} 5. Qxd2 {[%clk 0:03:01]}  cxd4 {[%clk 0:02:51]} 6. Qxd4 {[%clk 0:02:54]}  Nc6 {[%clk 0:02:51]} 7. Qd2 {[%clk 0:02:53]}  e5 {[%clk 0:02:42]} 8. Bg3 {[%clk 0:02:52]}  d6 {[%clk 0:02:42]} 9. O-O-O {[%clk 0:02:49]}  Be6 {[%clk 0:02:41]} 10. Kb1 {[%clk 0:02:47]}  Be7 {[%clk 0:02:38]} 11. e3 {[%clk 0:02:45]}  Qb6 {[%clk 0:02:37]} 12. Ne2 {[%clk 0:02:42]}  d5 {[%clk 0:02:04]} 13. Nc3 {[%clk 0:02:42]}  Rd8 {[%clk 0:02:04]} 14. Bb5 {[%clk 0:02:10]}  f6 {[%clk 0:02:00]} 15. Qe2 {[%clk 0:01:59]}  O-O {[%clk 0:01:59]} 16. Ba4 {[%clk 0:01:56]}  d4 {[%clk 0:01:50]} 17. Ne4 {[%clk 0:01:56]}  Nb4 {[%clk 0:01:41]} 18. Bb3 {[%clk 0:01:55]}  Bxb3 {[%clk 0:01:40]} 19. axb3 {[%clk 0:01:43]}  Qa5 {[%clk 0:01:40]} 20. exd4 {[%clk 0:01:43]}  Qa2+ {[%clk 0:01:36]} 21. Kc1 {[%clk 0:01:43]}  Qa1+ {[%clk 0:01:36]} 22. Kd2 {[%clk 0:01:40]}  Qxb2 {[%clk 0:01:32]} 23. Qc4+ {[%clk 0:01:21]}  Kh8 {[%clk 0:01:30]} 24. Ke2 {[%clk 0:01:22]}  Nxc2 {[%clk 0:01:27]} 25. Kf1 {[%clk 0:00:30]}  Rxd4 {[%clk 0:01:25]} 26. Rxd4 {[%clk 0:00:26]}  Nxd4 {[%clk 0:01:26]} 27. Qc3 {[%clk 0:00:20]}  Qb1+ {[%clk 0:01:23]} 28. Qe1 {[%clk 0:00:19]}  Qd3+ {[%clk 0:01:21]} 29. Kg1 {[%clk 0:00:19]}  Ne2+ {[%clk 0:01:21]} 30. Kf1 {[%clk 0:00:20]}  Nxg3+ {[%clk 0:01:21]} 31. Kg1 {[%clk 0:00:20]}  Nxe4 {[%clk 0:01:19]} 32. h4 {[%clk 0:00:20]}  Bc5 {[%clk 0:01:19]} 33. Rh3 {[%clk 0:00:20]}  Qxh3 {[%clk 0:01:17]} 34. gxh3 {[%clk 0:00:20]}  Bxf2+ {[%clk 0:01:16]} 0-1


[Site "https://www.chess.com"]

[Event "Titled Tuesday Blitz November 14 Late 2023"]
[White "Rastbod, Ali"]
[Black "Pinheiro, Iung Alicio de O."]
[WhiteFideId "12567477"]
[BlackFideId "2104350"]
[WhiteElo "2778"]
[BlackElo "2562"]
[Result "1-0"]
[Round "5"]
[TimeControl "180+1"]
[Date "2023.11.14"]
[WhiteClock "0:00:37"]
[BlackClock "0:00:00"]
[Board "32"]

1. Nf3 {[%clk 0:02:51]}  d5 {[%clk 0:02:57]} 2. c4 {[%clk 0:02:51]}  d4 {[%clk 0:02:51]} 3. b4 {[%clk 0:02:50]}  f6 {[%clk 0:02:52]} 4. e3 {[%clk 0:02:49]}  e5 {[%clk 0:02:52]} 5. c5 {[%clk 0:02:50]}  a5 {[%clk 0:02:52]} 6. Qa4+ {[%clk 0:02:50]}  Qd7 {[%clk 0:02:52]} 7. b5 {[%clk 0:02:36]}  Bxc5 {[%clk 0:02:45]} 8. Bc4 {[%clk 0:02:36]}  dxe3 {[%clk 0:02:24]} 9. dxe3 {[%clk 0:02:11]}  Qg4 {[%clk 0:02:21]} 10. Qb3 {[%clk 0:01:20]}  a4 {[%clk 0:01:22]} 11. Qc2 {[%clk 0:01:05]}  Qxg2 {[%clk 0:01:13]} 12. Rg1 {[%clk 0:01:04]}  Qxf3 {[%clk 0:01:07]} 13. Bxg8 {[%clk 0:01:04]}  Bb4+ {[%clk 0:01:06]} 14. Bd2 {[%clk 0:01:05]}  Bf5 {[%clk 0:00:49]} 15. Qxc7 {[%clk 0:00:40]}  Nd7 {[%clk 0:00:07]} 16. Bxb4 {[%clk 0:00:39]}  Rxg8 {[%clk 0:00:06]} 17. Nc3 {[%clk 0:00:39]}  Bd3 {[%clk 0:00:00]} 18. Qd6 {[%clk 0:00:37]} 1-0


[Site "https://www.chess.com"]

[Event "Titled Tuesday Blitz November 14 Late 2023"]
[White "Nazari, Arad"]
[Black "Richter, Paul"]
[WhiteFideId "12577324"]
[BlackFideId "2046350"]
[WhiteElo "2762"]
[BlackElo "2535"]
[Result "1-0"]
[Round "5"]
[TimeControl "180+1"]
[Date "2023.11.14"]
[WhiteClock "0:00:16"]
[BlackClock "0:00:08"]
[Board "35"]

1. e4 {[%clk 0:01:23]}  c5 {[%clk 0:02:56]} 2. Nf3 {[%clk 0:01:24]}  d6 {[%clk 0:02:56]} 3. Bb5+ {[%clk 0:01:23]}  Nc6 {[%clk 0:02:55]} 4. Bxc6+ {[%clk 0:01:23]}  bxc6 {[%clk 0:02:56]} 5. O-O {[%clk 0:01:23]}  e5 {[%clk 0:02:56]} 6. c3 {[%clk 0:01:24]}  g5 {[%clk 0:02:52]} 7. d4 {[%clk 0:01:11]}  g4 {[%clk 0:02:51]} 8. Ne1 {[%clk 0:01:12]}  cxd4 {[%clk 0:02:50]} 9. cxd4 {[%clk 0:01:12]}  Ba6 {[%clk 0:02:39]} 10. Nd3 {[%clk 0:00:52]}  exd4 {[%clk 0:02:39]} 11. Re1 {[%clk 0:00:47]}  Be7 {[%clk 0:02:34]} 12. e5 {[%clk 0:00:47]}  d5 {[%clk 0:02:14]} 13. Qxg4 {[%clk 0:00:45]}  Bxd3 {[%clk 0:01:39]} 14. Qg7 {[%clk 0:00:45]}  Bxb1 {[%clk 0:01:25]} 15. Qxh8 {[%clk 0:00:35]}  Qa5 {[%clk 0:01:25]} 16. Qxg8+ {[%clk 0:00:29]}  Kd7 {[%clk 0:01:24]} 17. Qg4+ {[%clk 0:00:28]}  Kc7 {[%clk 0:01:13]} 18. Bd2 {[%clk 0:00:27]}  Qxd2 {[%clk 0:01:11]} 19. Raxb1 {[%clk 0:00:27]}  Bc5 {[%clk 0:00:56]} 20. b4 {[%clk 0:00:22]}  Bb6 {[%clk 0:00:54]} 21. e6 {[%clk 0:00:22]}  d3 {[%clk 0:00:49]} 22. Qg3+ {[%clk 0:00:20]}  Kb7 {[%clk 0:00:48]} 23. exf7 {[%clk 0:00:21]}  Rf8 {[%clk 0:00:48]} 24. Qf3 {[%clk 0:00:17]}  Qc2 {[%clk 0:00:39]} 25. Rbd1 {[%clk 0:00:17]}  d2 {[%clk 0:00:36]} 26. Re7+ {[%clk 0:00:17]}  Ka6 {[%clk 0:00:17]} 27. Qe2+ {[%clk 0:00:18]}  Qc4 {[%clk 0:00:16]} 28. Qxc4+ {[%clk 0:00:18]}  dxc4 {[%clk 0:00:17]} 29. Rxd2 {[%clk 0:00:19]}  Kb5 {[%clk 0:00:17]} 30. a3 {[%clk 0:00:19]}  a5 {[%clk 0:00:16]} 31. bxa5 {[%clk 0:00:19]}  Bc5 {[%clk 0:00:17]} 32. Rb7+ {[%clk 0:00:18]}  Kxa5 {[%clk 0:00:17]} 33. Rc2 {[%clk 0:00:19]}  Rd8 {[%clk 0:00:10]} 34. g3 {[%clk 0:00:18]}  h5 {[%clk 0:00:09]} 35. Rxc4 {[%clk 0:00:18]}  Bxa3 {[%clk 0:00:10]} 36. Rxc6 {[%clk 0:00:18]}  h4 {[%clk 0:00:10]} 37. Kg2 {[%clk 0:00:18]}  Rh8 {[%clk 0:00:09]} 38. Rg6 {[%clk 0:00:15]}  h3+ {[%clk 0:00:10]} 39. Kf3 {[%clk 0:00:15]}  Rf8 {[%clk 0:00:10]} 40. Rg8 {[%clk 0:00:16]}  Bd6 {[%clk 0:00:08]} 41. Rxf8 {[%clk 0:00:16]} 1-0


[Site "https://www.chess.com"]